bitfinex/quotes_SOLUSD_20260119
["timestamp","ask_amount","ask_price","bid_price","bid_amount"]
[1768825250767,28.55769481,133.93,133.9,2.47851417]
[1768825251344,2.42402334,133.92,133.9,2.47851417]
[1768825252341,9.89155635,133.92,133.9,2.47851417]
[1768825259142,10.01751509,133.93,133.9,2.47851417]
[1768825261651,2.55070227,133.95,133.92,2.3860068]
[1768825261828,103.1,133.96,133.93,2.3860068]
[1768825261829,113.11586318,133.96,133.93,2.3860068]
[1768825262154,10.01586318,133.96,133.93,2.3860068]
[1768825276371,10.01586318,133.96,133.9,7.46801664]
[1768825276372,2.55070227,133.95,133.9,2.52816837]
[1768825276671,2.55070227,133.95,133.92,2.3860068]
[1768825278373,7.46602956,133.94,133.92,2.3860068]
[1768825281278,10.01643729,133.95,133.92,5.38517004]
[1768825281454,10.01643729,133.95,133.93,2.3860068]
[1768825281658,10.01577237,133.96,133.93,2.3860068]
[1768825295579,9.8927889,133.97,133.94,2.52399936]
[1768825295800,9.8927889,133.97,133.95,2.52399936]
[1768825314397,9.8927889,133.97,133.94,5.46628411]
[1768825317101,9.8927889,133.97,133.94,2.46954507]
[1768825317279,2.29753357,133.96,133.94,2.46954507]
[1768825318595,9.76189126,133.97,133.94,2.46954507]
[1768825320903,2.29753357,133.96,133.92,2.99673904]
[1768825321200,2.29753357,133.96,133.91,0.14216157]
[1768825321390,2.29753357,133.96,133.92,2.99673904]
[1768825322815,2.29753357,133.95,133.91,2.46954507]
[1768825323003,2.29753357,133.95,133.92,2.46954507]
[1768825324913,2.29753357,133.93,133.89,5.46628411]
[1768825325209,2.29753357,133.93,133.9,2.46954507]
[1768825326115,2.29753357,133.93,133.9,5.46628411]
[1768825326915,9.76424017,133.93,133.9,2.43954507]
[1768825327095,9.76424017,133.93,133.9,5.43628411]
[1768825327605,2.29753357,133.92,133.9,2.43954507]
[1768825329425,2.29753357,133.92,133.9,2.40954507]
[1768825329820,9.7647875,133.92,133.9,2.40954507]
[1768825331097,9.7647875,133.92,133.89,2.99673904]
[1768825331427,9.7647875,133.92,133.89,5.46628411]
[1768825331920,2.29753357,133.91,133.88,5.46628411]
[1768825332121,2.29753357,133.91,133.88,2.46954507]
[1768825333621,7.46825989,133.9,133.88,2.46954507]
[1768825333923,2.29753357,133.89,133.86,2.99673904]
[1768825334124,2.29753357,133.89,133.86,2.46954507]
[1768825334429,2.29753357,133.89,133.86,5.46628411]
[1768825334911,2.29753357,133.89,133.86,2.46954507]
[1768825335112,2.29753357,133.89,133.85,5.46628411]
[1768825335318,2.29753357,133.88,133.85,2.46954507]
[1768825335797,9.76711078,133.88,133.85,2.46954507]
[1768825339129,9.76711078,133.88,133.85,5.46628411]
[1768825341127,9.76711078,133.88,133.85,2.46954507]
[1768825342328,9.76711078,133.88,133.85,5.46628411]
[1768825345128,9.76711078,133.88,133.85,2.46954507]
[1768825345315,9.76711078,133.88,133.85,5.46628411]
[1768825346708,9.76711078,133.88,133.86,2.31791969]
[1768825347121,9.76711078,133.88,133.85,2.99673904]
[1768825347122,9.76711078,133.88,133.85,2.31791969]
[1768825347330,9.90259886,133.88,133.85,5.31465873]
[1768825347830,9.90259886,133.88,133.85,2.31791969]
[1768825348350,2.43302165,133.9,133.87,5.31465873]
[1768825349630,9.90150522,133.9,133.87,5.31465873]
[1768825350729,2.43302165,133.92,133.88,2.31791969]
[1768825350931,9.90047199,133.92,133.89,2.31791969]
[1768825351408,2.43302165,133.91,133.88,2.31791969]
[1768825351604,2.43302165,133.9,133.88,2.31791969]
[1768825352331,2.43302165,133.9,133.87,2.31791969]
[1768825355732,2.43302165,133.91,133.88,2.31791969]
[1768825355926,9.9007655,133.91,133.88,2.31791969]
[1768825358626,2.43302165,133.91,133.88,2.31791969]
[1768825359439,2.32302487,133.9,133.87,2.31791969]
[1768825360319,2.32302487,133.9,133.87,5.31465873]
[1768825360524,2.32302487,133.9,133.88,2.3969606]
[1768825364143,2.32302487,133.9,133.87,2.3969606]
[1768825365035,9.79152726,133.9,133.87,2.3969606]
[1768825368133,9.7923541,133.89,133.85,5.39369964]
[1768825368319,2.32302487,133.88,133.85,2.3969606]
[1768825369237,2.32302487,133.87,133.84,2.3969606]
[1768825370023,5.31976391,133.88,133.84,2.3969606]
[1768825370547,12.78932407,133.88,133.84,2.3969606]
[1768825370725,9.79258503,133.88,133.85,2.3969606]
[1768825371439,2.32302487,133.88,133.85,2.3969606]
[1768825371747,7.46855313,133.9,133.88,2.3969606]
[1768825372138,9.791578,133.9,133.87,5.39369964]
[1768825372641,2.32302487,133.9,133.87,5.39369964]
[1768825373039,9.95521452,133.91,133.88,2.43130255]
[1768825373244,2.48717909,133.91,133.88,5.43145486]
[1768825374438,2.48717909,133.91,133.88,2.43130255]
[1768825374947,2.48717909,133.91,133.88,5.43145486]
[1768825376844,2.48717909,133.91,133.89,2.43130255]
[1768825377050,2.48717909,133.92,133.89,2.43130255]
[1768825380936,9.95463437,133.92,133.89,2.43130255]
[1768825381136,2.48717909,133.91,133.89,2.43130255]
[1768825382132,2.48717909,133.91,133.87,7.46964771]
[1768825382338,2.48717909,133.91,133.88,5.43145486]
[1768825383859,2.48717909,133.91,133.88,2.43130255]
[1768825384159,2.48717909,133.91,133.88,5.43145486]
[1768825384960,9.95463437,133.92,133.89,2.43130255]
[1768825385538,9.95463437,133.92,133.89,5.43145486]
[1768825385970,9.95463437,133.92,133.89,2.43130255]
[1768825387679,9.95402738,133.93,133.89,2.43130255]
[1768825387981,12.95417969,133.93,133.89,2.43130255]
[1768825388165,2.48717909,133.92,133.89,2.43130255]
[1768825390272,9.95433281,133.92,133.89,2.43130255]
[1768825392091,2.48717909,133.91,133.89,2.43130255]
[1768825393781,2.48717909,133.9,133.86,5.43145486]
[1768825394685,2.48717909,133.9,133.87,2.43130255]
[1768825396097,5.4873314,133.9,133.87,2.43130255]
[1768825396800,2.48717909,133.89,133.86,2.43130255]
[1768825397497,2.48717909,133.87,133.84,2.43130255]
[1768825397897,2.4271791,133.87,133.84,2.43130255]
[1768825398095,2.36717911,133.87,133.84,2.43130255]
[1768825398621,2.30717912,133.87,133.84,2.43130255]
[1768825402712,2.30717912,133.87,133.84,5.43145486]
[1768825402893,2.24717913,133.87,133.84,5.43145486]
[1768825405316,2.18717914,133.87,133.84,5.43145486]
[1768825405710,2.18717914,133.87,133.84,12.90301953]
[1768825406010,7.46909378,133.89,133.85,5.36093367]
[1768825406811,7.46909378,133.89,133.85,2.36078136]
[1768825407014,7.46909378,133.89,133.85,5.36093367]
[1768825407418,2.44868067,133.87,133.85,5.36093367]
[1768825408498,2.44868067,133.87,133.85,3.00015231]
[1768825408898,2.44868067,133.87,133.84,5.36093367]
[1768825412618,2.44868067,133.87,133.85,2.36078136]
[1768825412916,2.44868067,133.88,133.85,2.36078136]
[1768825419404,1.956219,133.88,133.85,2.36078136]
[1768825422330,1.956219,133.88,133.85,9.83181949]
[1768825422634,1.956219,133.88,133.86,2.4141326]
[1768825422801,1.956219,133.88,133.85,12.88532304]
[1768825423936,9.83468209,133.89,133.86,2.4141326]
[1768825424335,9.83468209,133.89,133.86,5.41428491]
[1768825425332,16.36,133.91,133.87,2.4141326]
[1768825425637,2.36581207,133.92,133.89,5.41428491]
[1768825426538,9.83337326,133.92,133.89,5.41428491]
[1768825429724,9.83337326,133.92,133.89,2.4141326]
[1768825442242,2.3868879,133.91,133.88,5.45672069]
[1768825442651,2.3868879,133.91,133.89,2.45718908]
[1768825443349,2.3868879,133.91,133.88,10.46878317]
[1768825443545,2.3868879,133.91,133.88,2.99953161]
[1768825443751,2.3868879,133.91,133.88,5.45672069]
[1768825444047,2.3868879,133.9,133.86,2.45718908]
[1768825444232,2.3868879,133.89,133.86,2.45718908]
[1768825444430,2.32688791,133.89,133.86,2.45718908]
[1768825444948,2.26688792,133.89,133.85,5.45672069]
[1768825445141,2.99953161,133.89,133.85,2.45718908]
[1768825447055,2.3868879,133.88,133.85,2.45718908]
[1768825449556,9.85639208,133.88,133.85,2.45718908]
[1768825450654,2.3868879,133.88,133.85,2.45718908]
[1768825450858,2.3868879,133.88,133.85,12.92770792]
[1768825453272,2.3868879,133.88,133.85,5.45672069]
[1768825456964,9.85627042,133.88,133.85,5.45672069]
[1768825457564,2.3868879,133.87,133.85,5.45672069]
[1768825457764,2.3868879,133.87,133.84,5.45672069]
[1768825459166,2.32688791,133.87,133.84,5.45672069]
[1768825459670,2.32688791,133.87,133.85,2.99953161]
[1768825461369,2.3868879,133.88,133.86,2.99953161]
[1768825461575,2.3868879,133.89,133.86,5.45672069]
[1768825462468,2.3868879,133.89,133.86,2.99953161]
[1768825463576,2.28449403,133.88,133.86,2.99953161]
[1768825463776,0.1,133.98,133.91,0.14216157]
[1768825463976,16.36,133.97,133.92,2.34445351]
[1768825464276,16.36,133.97,133.92,2.99953161]
[1768825464277,45.48478353,133.97,133.92,2.99953161]
[1768825464451,2.99953161,133.96,133.91,5.34398512]
[1768825465270,42.48525192,133.97,133.89,0.14216157]
[1768825465271,2.99953161,133.94,133.89,5.34398512]
[1768825465475,16.36,133.93,133.89,5.34398512]
[1768825465768,2.28449403,133.92,133.89,5.34398512]
[1768825466170,2.28449403,133.92,133.89,12.8127486]
[1768825466363,16.36,133.91,133.9,2.99953161]
[1768825466769,16.36,133.92,133.9,12.81215913]
[1768825467578,16.36,133.92,133.9,5.34398512]
[1768825467779,2.28449403,133.93,133.9,5.34398512]
[1768825467985,16.36,133.92,133.9,5.34398512]
[1768825469389,16.36,133.92,133.9,2.34445351]
[1768825469778,2.28449403,133.93,133.9,2.34445351]
[1768825469968,16.36,133.92,133.9,2.34445351]
[1768825470289,18.64449403,133.92,133.9,2.34445351]
[1768825470584,16.36,133.92,133.9,5.34398512]
[1768825470769,2.28449403,133.91,133.88,2.34445351]
[1768825470964,1.74464305,133.91,133.88,2.34445351]
[1768825472490,9.21242138,133.91,133.88,2.34445351]
[1768825474484,7.46777833,133.91,133.88,2.34445351]
[1768825474671,18.64449403,133.91,133.89,2.34445351]
[1768825475886,18.64449403,133.91,133.87,5.34398512]
[1768825476991,9.75225079,133.91,133.87,5.34398512]
[1768825477172,26.11225079,133.91,133.87,5.34398512]
[1768825478485,26.11225079,133.91,133.88,2.34445351]
[1768825478992,2.28449403,133.9,133.86,5.34398512]
[1768825479293,2.28449403,133.89,133.86,2.34445351]
[1768825481104,2.28449403,133.89,133.85,2.99953161]
[1768825481105,2.25770334,133.88,133.85,2.26283809]
[1768825481676,2.25770334,133.87,133.85,2.26283809]
[1768825481899,2.25770334,133.87,133.84,5.2623697]
[1768825484219,2.25770334,133.87,133.84,2.26283809]
[1768825484420,2.25770334,133.87,133.84,5.2623697]
[1768825484710,2.25770334,133.86,133.83,5.2623697]
[1768825486895,2.25770334,133.86,133.83,12.73449382]
[1768825489404,26.08735183,133.88,133.84,5.2623697]
[1768825489598,9.72735183,133.88,133.84,2.26283809]
[1768825489907,26.08735183,133.88,133.84,5.2623697]
[1768825490116,2.25770334,133.87,133.84,5.2623697]
[1768825491282,2.25770334,133.87,133.84,12.73385344]
[1768825493915,2.25770334,133.87,133.83,10.47145029]
[1768825494088,2.25770334,133.87,133.83,12.86354345]
[1768825494284,2.25770334,133.87,133.84,2.39209316]
[1768825496811,2.25770334,133.87,133.84,5.39162477]
[1768825497015,2.25770334,133.87,133.84,5.39372468]
[1768825498813,2.36392721,133.86,133.82,2.39209316]
[1768825498992,2.36392721,133.85,133.82,2.39209316]
[1768825499198,2.30392722,133.85,133.82,2.39209316]
[1768825500094,2.30392722,133.85,133.82,5.39372468]
[1768825500414,7.47107828,133.85,133.81,2.39209316]
[1768825501304,2.36392721,133.84,133.8,5.39372468]
[1768825502194,16.36,133.85,133.83,2.39209316]
[1768825502400,18.72392721,133.85,133.82,2.39209316]
[1768825503412,2.36392721,133.85,133.82,9.86476967]
[1768825503611,2.36392721,133.85,133.82,12.86640119]
[1768825504012,2.36392721,133.85,133.82,5.39372468]
[1768825505718,2.36392721,133.85,133.82,12.86633335]
[1768825506103,26.19444593,133.86,133.83,2.39209316]
[1768825506512,2.36392721,133.85,133.83,2.39209316]
[1768825506819,2.30392712,133.85,133.83,2.39209316]
[1768825507898,23.83051872,133.86,133.83,2.39209316]
[1768825509019,26.19444593,133.86,133.83,2.39209316]
[1768825510123,9.83444593,133.86,133.83,2.39209316]
[1768825510423,26.19444593,133.86,133.83,2.39209316]
[1768825512029,2.36392721,133.85,133.83,2.39209316]
[1768825513432,9.77500731,133.85,133.83,2.39209316]
[1768825514634,2.30392712,133.85,133.83,2.39209316]
[1768825518348,9.77501578,133.85,133.83,2.39209316]
[1768825519445,26.19466401,133.86,133.83,2.39209316]
[1768825519629,23.83035096,133.87,133.84,2.39209316]
[1768825519825,26.19427817,133.87,133.84,2.39209316]
[1768825520020,26.13427814,133.87,133.84,2.39209316]
[1768825522545,2.36392721,133.86,133.84,2.39209316]
[1768825526736,2.30392716,133.86,133.84,2.39209316]
[1768825527955,2.30392716,133.86,133.82,10.4742743]
[1768825528251,2.30392716,133.86,133.83,2.35167104]
[1768825528949,2.2856983,133.85,133.82,2.35167104]
[1768825531153,9.75680036,133.85,133.82,2.35167104]
[1768825534543,9.75680036,133.85,133.82,1.35167104]
[1768825536059,2.2856983,133.84,133.82,1.35167104]
[1768825536755,2.2856983,133.83,133.8,5.35330256]
[1768825537870,16.36,133.83,133.79,2.55167104]
[1768825538062,19.36163152,133.83,133.79,2.55167104]
[1768825538764,26.83413384,133.83,133.79,2.55167104]
[1768825539247,16.36,133.83,133.8,2.37879507]
[1768825539865,18.58129592,133.83,133.8,2.37879507]
[1768825540241,26.05350147,133.83,133.8,2.37879507]
[1768825541253,18.58129592,133.83,133.8,5.38042659]
[1768825541459,26.05309606,133.84,133.81,2.37879507]
[1768825548066,9.69309606,133.84,133.81,2.37879507]
[1768825548767,2.22129592,133.83,133.81,2.37879507]
[1768825551065,9.69353398,133.83,133.81,2.37879507]
[1768825553164,9.69353398,133.83,133.8,2.27598961]
[1768825553370,2.38544526,133.82,133.8,2.27598961]
[1768825554252,2.32544526,133.82,133.8,2.27598961]
[1768825556866,9.79828783,133.82,133.8,2.27598961]
[1768825559759,2.38544526,133.81,133.79,0.2]
[1768825560067,9.85828783,133.82,133.79,2.47598961]
[1768825560676,9.85828783,133.82,133.79,0.2]
[1768825560677,2.38544526,133.81,133.79,0.2]
[1768825561978,9.85909832,133.81,133.79,0.2]
[1768825563891,9.85909832,133.81,133.79,2.47598961]
[1768825564260,9.85843143,133.82,133.79,5.47988326]
[1768825566279,9.85843143,133.82,133.79,2.47598961]
[1768825566459,9.85843143,133.82,133.79,5.47988326]
[1768825566662,9.85843143,133.82,133.79,2.47598961]
[1768825575278,9.79843144,133.82,133.79,2.47598961]
[1768825577479,9.79843144,133.82,133.79,5.47988326]
[1768825579272,9.79843144,133.82,133.79,2.47598961]
[1768825579988,9.8588294,133.81,133.79,2.47598961]
[1768825581892,9.79882941,133.81,133.79,2.47598961]
[1768825582385,9.73882942,133.81,133.79,2.47598961]
[1768825589004,9.67882943,133.81,133.79,2.47598961]
[1768825589794,10.47727779,133.81,133.78,0.2]
[1768825590190,29.16048532,133.81,133.78,0.2]
[1768825591100,9.8261633,133.8,133.78,0.2]
[1768825593306,9.82629528,133.79,133.78,1e-08]
[1768825599127,9.82599932,133.8,133.78,1e-08]
[1768825599628,2.34040893,133.79,133.78,1e-08]
[1768825600734,9.8148091,133.79,133.78,1e-08]
[1768825602325,7.47403946,133.8,133.78,1e-08]
[1768825602627,10.47793311,133.8,133.78,1e-08]
[1768825604436,12.81834204,133.8,133.78,1e-08]
[1768825609246,9.81444839,133.8,133.78,1e-08]
[1768825609424,29.19702713,133.82,133.78,2.20749238]
[1768825609825,26.8566182,133.82,133.78,2.20749238]
[1768825610025,2.34040893,133.81,133.78,2.20749238]
[1768825612349,9.81402985,133.81,133.78,2.20749238]
[1768825619753,2.37718261,133.8,133.78,1e-08]
[1768825620131,7.47440017,133.79,133.78,1e-08]
[1768825620344,9.85158278,133.79,133.78,1e-08]
[1768825622037,7.47440017,133.79,133.78,1e-08]
[1768825622531,7.4740854,133.8,133.78,1e-08]
[1768825622737,7.4740854,133.8,133.78,2.39164314]
[1768825622938,9.85126801,133.8,133.78,2.39164314]
[1768825628757,9.85126801,133.8,133.78,1e-08]
[1768825630355,2.37718261,133.79,133.78,1e-08]
[1768825632054,12.85631725,133.79,133.77,1e-08]
[1768825632858,29.16513508,133.79,133.77,1e-08]
[1768825633059,31.54231769,133.79,133.77,1e-08]
[1768825633565,2.37718261,133.78,133.77,1e-08]
[1768825633770,2.37718261,133.77,133.75,2.59164313]
[1768825633947,2.37718261,133.77,133.75,2.56164314]
[1768825634152,9.85325417,133.77,133.75,2.56164314]
[1768825635948,9.85325417,133.77,133.75,2.53164315]
[1768825636149,2.37718261,133.75,133.72,2.59164313]
[1768825636960,5.38191708,133.75,133.72,2.59164313]
[1768825638551,2.37718261,133.74,133.72,0.2]
[1768825639479,2.37718261,133.73,133.71,0.2]
[1768825639772,2.37718261,133.73,133.71,2.59164313]
[1768825641396,9.85507157,133.73,133.71,2.59164313]
[1768825641691,9.85507157,133.73,133.7,2.59164313]
[1768825641897,12.85980604,133.73,133.7,2.59164313]
[1768825643595,3.00473447,133.72,133.7,2.59164313]
[1768825643800,9.85507157,133.73,133.7,2.59164313]
[1768825644099,12.85980604,133.73,133.7,2.59164313]
[1768825644999,9.85507157,133.73,133.7,2.59164313]
[1768825645171,7.47788896,133.73,133.7,2.59164313]
[1768825646892,2.34687742,133.73,133.7,2.59164313]
[1768825648206,12.82970813,133.73,133.7,2.59164313]
[1768825648506,5.35161189,133.72,133.7,0.2]
[1768825649599,9.82553229,133.72,133.7,0.2]
[1768825653289,12.83026676,133.72,133.7,0.2]
[1768825655588,9.82553229,133.72,133.7,0.2]
[1768825657396,12.83026676,133.72,133.7,0.2]
[1768825657708,9.82553229,133.72,133.7,0.17000001]
[1768825657887,12.83026676,133.72,133.7,0.17000001]
[1768825662711,12.83026676,133.72,133.69,2.1700842]
[1768825662919,31.52604899,133.72,133.69,2.1700842]
[1768825664735,5.22873782,133.71,133.67,0.2]
[1768825665738,7.47943156,133.7,133.67,3.20473447]
[1768825666233,7.47943156,133.7,133.67,0.2]
[1768825666614,7.47943156,133.7,133.68,2.23914573]
[1768825671343,7.47901197,133.71,133.69,2.23914573]
[1768825674645,2.32930538,133.73,133.69,2.23914573]
[1768825674857,12.81179353,133.73,133.7,2.16958499]
[1768825675228,5.33403985,133.72,133.68,2.31174656]
[1768825675529,5.33403985,133.72,133.68,2.16958499]
[1768825676540,2.32930538,133.72,133.68,2.16958499]
[1768825677040,7.47887218,133.71,133.68,5.17431946]
[1768825677245,7.47837574,133.72,133.69,2.16958499]
[1768825677745,9.80733143,133.73,133.69,2.16958499]
[1768825677941,2.32930538,133.72,133.69,5.17431946]
[1768825678933,9.80767992,133.72,133.69,5.17431946]
[1768825680852,9.80767992,133.72,133.69,2.16958499]
[1768825681030,9.80767992,133.72,133.69,5.17792026]
[1768825682653,9.80767992,133.72,133.69,2.16958499]
[1768825688056,108.43764065,133.75,133.71,2.16958499]
[1768825688243,9.8067804,133.74,133.71,2.16958499]
[1768825689367,2.32930538,133.73,133.7,5.17792026]
[1768825692368,9.8071413,133.73,133.7,5.17792026]
[1768825693975,9.8071413,133.73,133.7,2.16958499]
[1768825695775,9.8071413,133.73,133.7,5.17792026]
[1768825695976,9.74714131,133.73,133.7,2.16958499]
[1768825696772,121.7920606,133.75,133.71,1.31743042]
[1768825696978,124.80039587,133.75,133.71,1.31743042]
[1768825697773,124.80039587,133.75,133.7,4.32540629]
[1768825697970,2.32930538,133.74,133.7,4.32540629]
[1768825698484,9.80649993,133.74,133.7,4.32540629]
[1768825698772,9.80718107,133.73,133.7,4.32540629]
[1768825699168,9.80718107,133.73,133.7,1.31707102]
[1768825701865,9.80649993,133.74,133.71,4.3240227]
[1768825705973,9.80649993,133.74,133.71,1.31568743]
[1768825706282,9.80649993,133.74,133.71,4.3240227]
[1768825708988,9.80649993,133.74,133.71,1.31568743]
[1768825709173,9.80649993,133.74,133.71,4.3240227]
[1768825710180,2.32930538,133.74,133.71,4.3240227]
[1768825710384,9.79263166,133.75,133.72,4.30922736]
[1768825710587,9.79263166,133.75,133.72,1.30089209]
[1768825710781,9.79263166,133.75,133.72,4.30922736]
[1768825711292,2.31561358,133.77,133.74,4.30783967]
[1768825711581,2.31561358,133.77,133.75,3.00833527]
[1768825714280,2.31561358,133.77,133.76,3.00833527]
[1768825715087,2.31561358,133.77,133.75,4.30377152]
[1768825716691,2.31561358,133.77,133.76,3.00833527]
[1768825717596,2.31561358,133.78,133.76,3.00833527]
[1768825721293,9.79063507,133.78,133.76,3.00833527]
[1768825722198,2.27828402,133.77,133.74,1.42741413]
[1768825722380,2.27828402,133.77,133.75,3.00833527]
[1768825724699,2.27828402,133.77,133.74,1.42741413]
[1768825724994,2.27828402,133.77,133.75,3.00833527]
[1768825726599,7.47563757,133.77,133.75,3.00833527]
[1768825726904,18.68641521,133.79,133.71,97.67665143]
[1768825726905,2.27828402,133.76,133.72,8.89964139]
[1768825727202,2.27828402,133.75,133.73,3.00833527]
[1768825728988,2.27828402,133.75,133.73,1.27708208]
[1768825729187,2.27828402,133.76,133.73,8.75479146]
[1768825729389,2.27828402,133.76,133.73,11.76312673]
[1768825730206,2.27828402,133.78,133.75,4.28430314]
[1768825730503,2.27828402,133.78,133.76,3.00833527]
[1768825730694,2.27828402,133.78,133.75,3.00833527]
[1768825730894,2.27828402,133.78,133.75,11.7595711]
[1768825731687,2.27828402,133.78,133.75,10.48470464]
[1768825732813,2.27828402,133.78,133.76,3.00833527]
[1768825733096,3.00833527,133.81,133.77,4.27997284]
[1768825733097,2.19284571,133.8,133.77,4.27997284]
[1768825733301,2.19284571,133.8,133.78,3.00833527]
[1768825734005,2.19284571,133.8,133.76,1.2705859]
[1768825734186,2.19284571,133.8,133.77,3.00833527]
[1768825734930,0.1,133.86,133.8,2.15347639]
[1768825735200,0.1,133.86,133.77,3.00833527]
[1768825735201,2.19284571,133.85,133.81,3.00833527]
[1768825735908,26.14942073,133.85,133.81,3.00833527]
[1768825736089,2.19284571,133.84,133.81,3.00833527]
[1768825736291,2.19284571,133.84,133.8,3.00833527]
[1768825737105,2.19284571,133.83,133.8,5.16181166]
[1768825739716,2.19284571,133.83,133.8,2.15347639]
[1768825739901,2.19284571,133.83,133.8,5.16181166]
[1768825741008,2.19284571,133.83,133.8,5.15682762]
[1768825741214,2.19284571,133.83,133.81,3.00335123]
[1768825741606,2.19284571,133.83,133.79,5.15682762]
[1768825741802,2.19284571,133.82,133.78,10.62010051]
[1768825742002,2.19284571,133.82,133.78,12.7735769]
[1768825742201,2.19284571,133.82,133.78,9.77022567]
[1768825742400,2.19284571,133.82,133.78,12.7735769]
[1768825743112,2.19284571,133.82,133.79,2.15347639]
[1768825744214,2.19284571,133.82,133.78,12.7735769]
[1768825744409,7.47292633,133.82,133.78,5.15682762]
[1768825744609,2.19284571,133.82,133.79,12.63111174]
[1768825744804,2.19284571,133.82,133.79,3.00335123]
[1768825744995,2.19284571,133.82,133.78,12.63177734]
[1768825745197,2.19284571,133.83,133.8,5.15682762]
[1768825746397,2.19284571,133.83,133.8,2.15347639]
[1768825746798,2.19284571,133.83,133.8,2.1234764]
[1768825748406,2.19284571,133.83,133.8,2.09347641]
[1768825749315,2.19284571,133.83,133.8,12.57058044]
[1768825749514,2.19284571,133.83,133.8,5.09682764]
[1768825749712,2.19284571,133.83,133.8,2.09347641]
[1768825750020,2.19284571,133.83,133.8,5.09682764]
[1768825750217,2.19284571,133.83,133.8,2.09347641]
[1768825750519,2.19284571,133.83,133.8,5.09682764]
[1768825751498,2.19284571,133.83,133.79,10.61969869]
[1768825751698,2.19284571,133.83,133.79,7.61634746]
[1768825751899,2.19284571,133.83,133.79,10.61969869]
[1768825753122,2.19284571,133.82,133.78,7.47492804]
[1768825753327,2.19284571,133.81,133.77,3.00335123]
[1768825753621,2.19284571,133.81,133.77,5.15682762]
[1768825754511,2.19284571,133.81,133.77,9.62892908]
[1768825754912,2.19284571,133.81,133.77,12.63228031]
[1768825755513,2.19284571,133.81,133.77,9.62892908]
[1768825756307,2.19284571,133.81,133.78,2.15347639]
[1768825756831,2.19284571,133.81,133.78,2.1234764]
[1768825757928,5.19619694,133.83,133.79,0.14216157]
[1768825758119,2.19284571,133.82,133.78,3.00335123]
[1768825758321,2.19284571,133.82,133.78,0.14216157]
[1768825758322,2.19284571,133.81,133.78,0.14216157]
[1768825758518,2.19284571,133.81,133.78,7.61711716]
[1768825758719,2.19284571,133.81,133.78,0.14216157]
[1768825759028,2.19284571,133.81,133.78,2.29563796]
[1768825759709,2.19284571,133.81,133.78,0.14216157]
[1768825760837,2.19284571,133.81,133.77,2.15347639]
[1768825760838,2.19284571,133.8,133.77,2.15347639]
[1768825761311,2.19284571,133.8,133.77,9.62897622]
[1768825762618,2.19284571,133.8,133.77,2.15347639]
[1768825762818,2.19284571,133.8,133.77,9.62895528]
[1768825763837,2.19284571,133.8,133.77,2.15347639]
[1768825765033,9.66669783,133.8,133.77,2.15347639]
[1768825765637,2.149448,133.79,133.76,5.10488492]
[1768825766516,2.149448,133.78,133.75,5.10488492]
[1768825766722,2.149448,133.78,133.75,2.10153369]
[1768825768226,2.149448,133.78,133.75,5.10488492]
[1768825773944,2.149448,133.78,133.75,12.58147405]
[1768825774114,12.62690713,133.8,133.76,2.10153369]
[1768825774319,9.6235559,133.8,133.77,2.10153369]
[1768825774832,2.149448,133.8,133.77,5.10488492]
[1768825777536,9.62236953,133.82,133.79,2.10153369]
[1768825777840,2.149448,133.82,133.8,3.00335123]
[1768825778935,9.62130005,133.84,133.8,3.00335123]
[1768825779720,9.61137496,133.85,133.82,5.10225762]
[1768825784346,2.14026162,133.84,133.82,5.10225762]
[1768825786049,2.14026162,133.84,133.82,2.09890639]
[1768825786250,2.14026162,133.84,133.82,5.10225762]
[1768825787846,2.14026162,133.84,133.82,3.00335123]
[1768825788153,2.14026162,133.84,133.81,2.09890639]
[1768825788451,2.14026162,133.84,133.82,3.00335123]
[1768825788649,2.14026162,133.84,133.81,2.09890639]
[1768825788953,2.14026162,133.84,133.82,3.00335123]
[1768825791566,2.14026162,133.84,133.81,2.09890639]
[1768825791856,2.14026162,133.84,133.82,3.00335123]
[1768825794969,2.14026162,133.84,133.82,2.97335124]
[1768825795456,2.14026162,133.84,133.81,2.09890639]
[1768825795657,2.14026162,133.84,133.82,3.00335123]
[1768825798761,2.14026162,133.84,133.81,2.09890639]
[1768825798965,2.14026162,133.84,133.82,3.00335123]
[1768825802570,2.14026162,133.84,133.82,5.18699442]
[1768825802958,2.14026162,133.84,133.82,5.18611857]
[1768825805466,9.75901407,133.85,133.82,5.18611857]
[1768825805665,0.1,133.86,133.84,5.18611857]
[1768825805847,2.38790073,133.86,133.84,5.18611857]
[1768825806250,2.38790073,133.86,133.84,2.18364319]
[1768825806664,9.85840697,133.86,133.84,2.18364319]
[1768825808259,2.38790073,133.86,133.84,2.18364319]
[1768825808461,2.38790073,133.86,133.83,5.18611857]
[1768825811777,2.38790073,133.86,133.84,3.00247538]
[1768825812181,2.38790073,133.86,133.83,2.18364319]
[1768825812362,2.38790073,133.86,133.84,3.00247538]
[1768825814083,9.85846558,133.86,133.83,5.18611857]
[1768825814378,2.38790073,133.86,133.83,5.18611857]
[1768825816262,9.85840013,133.86,133.83,5.18611857]
[1768825816572,2.38790073,133.86,133.83,5.18611857]
[1768825819179,2.38790073,133.86,133.84,5.18611857]